[Event "*** Titled Tuesday Blitz"]
[Site "Chess.com"]
[Date "2020.04.21"]
[Round "7"]
[White "Nara_Kh"]
[Black "SloLev"]
[Result "0-1"]
[WhiteElo "2365"]
[BlackElo "2527"]
[TimeControl "180+1"]
[EndTime "11:21:52 PDT"]
[Termination "SloLev won by resignation"]

1. e4 {[%clk 0:03:00.9]} 1... e5 {[%clk 0:02:59.3]} 2. Nf3 {[%clk 0:02:58.5]}
2... Nc6 {[%clk 0:02:59.5]} 3. Bb5 {[%clk 0:02:57.9]} 3... Nge7 {[%clk
0:02:57.2]} 4. O-O {[%clk 0:02:56.8]} 4... g6 {[%clk 0:02:57.4]} 5. c3 {[%clk
0:02:57]} 5... Bg7 {[%clk 0:02:57.2]} 6. d4 {[%clk 0:02:57.1]} 6... exd4 {[%clk
0:02:58.1]} 7. cxd4 {[%clk 0:02:56.6]} 7... a6 {[%clk 0:02:58.6]} 8. Ba4 {[%clk
0:02:54.4]} 8... b5 {[%clk 0:02:59]} 9. Bb3 {[%clk 0:02:50.2]} 9... O-O {[%clk
0:02:59.9]} 10. Nc3 {[%clk 0:02:48.5]} 10... d6 {[%clk 0:02:57.6]} 11. h3 {[%clk
0:02:42.3]} 11... h6 {[%clk 0:02:56.8]} 12. Be3 {[%clk 0:02:39.7]} 12... Na5
{[%clk 0:02:56.8]} 13. Bc2 {[%clk 0:02:34.6]} 13... Nc4 {[%clk 0:02:56.5]} 14.
Bc1 {[%clk 0:02:34.1]} 14... c5 {[%clk 0:02:54.1]} 15. b3 {[%clk 0:02:12.5]}
15... Nb6 {[%clk 0:02:50.3]} 16. Bb2 {[%clk 0:02:02.6]} 16... c4 {[%clk
0:02:45.4]} 17. b4 {[%clk 0:01:52.2]} 17... d5 {[%clk 0:02:43.2]} 18. e5 {[%clk
0:01:48.7]} 18... Bf5 {[%clk 0:02:27.4]} 19. a4 {[%clk 0:01:45.9]} 19... Qd7
{[%clk 0:02:17.7]} 20. a5 {[%clk 0:01:30.3]} 20... Nbc8 {[%clk 0:02:15.7]} 21.
Ne2 {[%clk 0:01:28.5]} 21... Na7 {[%clk 0:02:14.9]} 22. Nf4 {[%clk 0:01:24.8]}
22... Nac6 {[%clk 0:02:13.4]} 23. Bc3 {[%clk 0:01:24.9]} 23... Bxc2 {[%clk
0:02:05.5]} 24. Qxc2 {[%clk 0:01:24.8]} 24... Rfd8 {[%clk 0:02:03.3]} 25. e6
{[%clk 0:01:22.3]} 25... Qd6 {[%clk 0:01:57.5]} 26. exf7+ {[%clk 0:01:09]} 26...
Kxf7 {[%clk 0:01:58.4]} 27. Qd2 {[%clk 0:01:09.3]} 27... Re8 {[%clk 0:01:34.3]}
28. Rfe1 {[%clk 0:01:07.7]} 28... Ng8 {[%clk 0:01:34.6]} 29. Ne5+ {[%clk
0:01:00.3]} 29... Nxe5 {[%clk 0:01:05.9]} 30. dxe5 {[%clk 0:00:59.2]} 30... Bxe5
{[%clk 0:00:59.2]} 31. Bxe5 {[%clk 0:00:46]} 31... Rxe5 {[%clk 0:01:00.1]} 32.
Rxe5 {[%clk 0:00:21.3]} 32... Qxe5 {[%clk 0:01:01]} 33. Re1 {[%clk 0:00:20.9]}
33... Qg5 {[%clk 0:00:59.9]} 34. Qxd5+ {[%clk 0:00:19.5]} 34... Qxd5 {[%clk
0:00:57.9]} 35. Nxd5 {[%clk 0:00:20.1]} 35... Rd8 {[%clk 0:00:56.6]} 36. Nc7
{[%clk 0:00:20.5]} 36... Rd6 {[%clk 0:00:43.9]} 37. Re5 {[%clk 0:00:21]} 37...
Nf6 {[%clk 0:00:34.8]} 38. Kf1 {[%clk 0:00:20.6]} 38... c3 {[%clk 0:00:29.9]}
39. Rc5 {[%clk 0:00:20.4]} 39... Ne4 {[%clk 0:00:30.3]} 40. Rd5 {[%clk
0:00:18.4]} 40... c2 {[%clk 0:00:29]} 41. Rxd6 {[%clk 0:00:17.3]} 41... c1=Q+
{[%clk 0:00:28.4]} 42. Ke2 {[%clk 0:00:17.4]} 42... Nxd6 {[%clk 0:00:28.1]} 0-1

[Event "*** Titled Tuesday Blitz"]
[Site "Chess.com"]
[Date "2020.04.21"]
[Round "7"]
[White "plumalka"]
[Black "KuzubovYuriy"]
[Result "0-1"]
[WhiteElo "2446"]
[BlackElo "2755"]
[TimeControl "180+1"]
[EndTime "11:21:53 PDT"]
[Termination "KuzubovYuriy won by resignation"]

1. e4 {[%clk 0:03:00.9]} 1... c6 {[%clk 0:02:59.9]} 2. d4 {[%clk 0:03:00.5]}
2... d5 {[%clk 0:03:00.5]} 3. e5 {[%clk 0:03:00.9]} 3... Bf5 {[%clk 0:02:59.5]}
4. c4 {[%clk 0:03:01.1]} 4... dxc4 {[%clk 0:02:57.2]} 5. Bxc4 {[%clk 0:03:00.2]}
5... e6 {[%clk 0:02:57.5]} 6. Nc3 {[%clk 0:02:56.8]} 6... Ne7 {[%clk 0:02:56]}
7. Nge2 {[%clk 0:02:56.5]} 7... h6 {[%clk 0:02:53.8]} 8. O-O {[%clk 0:02:55.9]}
8... Bh7 {[%clk 0:02:53.8]} 9. Ng3 {[%clk 0:02:52.7]} 9... Nd7 {[%clk
0:02:52.1]} 10. Nce4 {[%clk 0:02:48]} 10... Nd5 {[%clk 0:02:50.8]} 11. Bxd5
{[%clk 0:02:42.9]} 11... cxd5 {[%clk 0:02:50.3]} 12. Nc3 {[%clk 0:02:42.1]}
12... Qb6 {[%clk 0:02:36.9]} 13. Qg4 {[%clk 0:02:37.1]} 13... Bg6 {[%clk
0:02:32.5]} 14. h4 {[%clk 0:02:23.4]} 14... h5 {[%clk 0:02:32.4]} 15. Qf4 {[%clk
0:02:12]} 15... Rc8 {[%clk 0:02:31.2]} 16. Be3 {[%clk 0:01:39.9]} 16... Be7
{[%clk 0:02:23.1]} 17. Rac1 {[%clk 0:01:30.9]} 17... O-O {[%clk 0:02:16.4]} 18.
b3 {[%clk 0:01:30.3]} 18... Qa5 {[%clk 0:02:08.2]} 19. Bd2 {[%clk 0:01:27.6]}
19... Bb4 {[%clk 0:02:03.1]} 20. Qf3 {[%clk 0:01:26.5]} 20... f6 {[%clk
0:01:58.8]} 21. Nxd5 {[%clk 0:01:09.3]} 21... Rxc1 {[%clk 0:01:50.5]} 22. Rxc1
{[%clk 0:00:36.4]} 22... Bxd2 {[%clk 0:01:25.3]} 23. Ne7+ {[%clk 0:00:33]} 23...
Kf7 {[%clk 0:01:24]} 24. Nxg6 {[%clk 0:00:29.9]} 24... Bxc1 {[%clk 0:01:23.7]}
25. Qxh5 {[%clk 0:00:29.9]} 25... Rc8 {[%clk 0:01:16.4]} 26. d5 {[%clk
0:00:20.9]} 26... Qe1+ {[%clk 0:01:07.4]} 27. Kh2 {[%clk 0:00:21]} 27... exd5
{[%clk 0:01:02.8]} 28. Nf4+ {[%clk 0:00:17.4]} 28... Kg8 {[%clk 0:01:00.6]} 29.
e6 {[%clk 0:00:15.9]} 29... Bxf4 {[%clk 0:00:58.9]} 30. Qf7+ {[%clk 0:00:15.8]}
30... Kh7 {[%clk 0:00:57.1]} 31. exd7 {[%clk 0:00:16.2]} 31... Rd8 {[%clk
0:00:51.8]} 32. Kh3 {[%clk 0:00:15.3]} 32... Qe5 {[%clk 0:00:50.1]} 33. Nh5
{[%clk 0:00:13.3]} 33... Bh6 {[%clk 0:00:49]} 34. f4 {[%clk 0:00:11.7]} 34...
Qf5+ {[%clk 0:00:46.4]} 35. g4 {[%clk 0:00:11.7]} 35... Rxd7 {[%clk 0:00:45.2]}
36. Nxf6+ {[%clk 0:00:09.2]} 36... Qxf6 {[%clk 0:00:45.4]} 37. Qxd7 {[%clk
0:00:09.8]} 37... Qc3+ {[%clk 0:00:45.7]} 38. Kg2 {[%clk 0:00:09.6]} 38... Qd2+
{[%clk 0:00:46.1]} 39. Kh3 {[%clk 0:00:09.5]} 39... Qd3+ {[%clk 0:00:45]} 40.
Kg2 {[%clk 0:00:09.6]} 40... Bxf4 {[%clk 0:00:44.8]} 41. Qf5+ {[%clk 0:00:09.2]}
41... Qxf5 {[%clk 0:00:44.6]} 42. gxf5 {[%clk 0:00:10.1]} 42... Be5 {[%clk
0:00:44.9]} 43. Kf3 {[%clk 0:00:10.8]} 43... Kh6 {[%clk 0:00:45.3]} 44. Kg4
{[%clk 0:00:11.7]} 44... Bf6 {[%clk 0:00:45.5]} 45. Kf4 {[%clk 0:00:11.8]} 45...
a5 {[%clk 0:00:45.6]} 46. h5 {[%clk 0:00:11.9]} 46... Kxh5 {[%clk 0:00:44.7]}
0-1

[Event "*** Titled Tuesday Blitz"]
[Site "Chess.com"]
[Date "2020.04.21"]
[Round "7"]
[White "Rozum_Ivan"]
[Black "ALeks_Ivlev"]
[Result "1-0"]
[WhiteElo "2721"]
[BlackElo "2520"]
[TimeControl "180+1"]
[EndTime "11:21:54 PDT"]
[Termination "Rozum_Ivan won by resignation"]

1. Nf3 {[%clk 0:03:00.9]} 1... Nf6 {[%clk 0:02:59.5]} 2. g3 {[%clk 0:03:00.5]}
2... b5 {[%clk 0:02:57.7]} 3. Bg2 {[%clk 0:03:01.4]} 3... Bb7 {[%clk 0:02:57.9]}
4. O-O {[%clk 0:03:02.3]} 4... g6 {[%clk 0:02:58]} 5. d3 {[%clk 0:02:58.3]} 5...
Bg7 {[%clk 0:02:57.9]} 6. c4 {[%clk 0:02:58.4]} 6... bxc4 {[%clk 0:02:53.4]} 7.
dxc4 {[%clk 0:02:59.3]} 7... O-O {[%clk 0:02:53.1]} 8. Nc3 {[%clk 0:02:55.5]}
8... c5 {[%clk 0:02:52.7]} 9. Bg5 {[%clk 0:02:48]} 9... d6 {[%clk 0:02:50]} 10.
Qd2 {[%clk 0:02:46.2]} 10... Nbd7 {[%clk 0:02:49.2]} 11. Rad1 {[%clk 0:02:40.3]}
11... Rb8 {[%clk 0:02:47.8]} 12. Rfe1 {[%clk 0:02:38.5]} 12... Ne4 {[%clk
0:02:37.9]} 13. Nxe4 {[%clk 0:02:34.1]} 13... Bxe4 {[%clk 0:02:37.6]} 14. Qe3
{[%clk 0:02:32.5]} 14... f5 {[%clk 0:02:08]} 15. Rxd6 {[%clk 0:02:25.3]} 15...
exd6 {[%clk 0:01:58.8]} 16. Bxd8 {[%clk 0:02:25]} 16... Rfxd8 {[%clk 0:01:59.7]}
17. b3 {[%clk 0:02:23]} 17... Nf6 {[%clk 0:01:50.4]} 18. Ng5 {[%clk 0:02:21.8]}
18... Ng4 {[%clk 0:01:41.9]} 19. Qd2 {[%clk 0:02:17.6]} 19... d5 {[%clk
0:01:39.8]} 20. Ne6 {[%clk 0:02:09.9]} 20... Rd6 {[%clk 0:01:06.3]} 21. Nxg7
{[%clk 0:02:09.8]} 21... Bxg2 {[%clk 0:01:06]} 22. Nxf5 {[%clk 0:02:07.2]} 22...
gxf5 {[%clk 0:01:04.4]} 23. Kxg2 {[%clk 0:02:06.7]} 23... d4 {[%clk 0:00:58]}
24. Qg5+ {[%clk 0:02:06.6]} 24... Rg6 {[%clk 0:00:57.7]} 25. Qxf5 {[%clk
0:02:05.2]} 25... Rf8 {[%clk 0:00:58.3]} 26. Qd5+ {[%clk 0:02:04.3]} 26... Kg7
{[%clk 0:00:58.3]} 27. h3 {[%clk 0:01:22.4]} 27... Rxf2+ {[%clk 0:00:49.1]} 28.
Kg1 {[%clk 0:01:22.7]} 28... Ne3 {[%clk 0:00:49.5]} 29. Kxf2 {[%clk 0:01:04.2]}
29... Nxd5 {[%clk 0:00:48.9]} 30. cxd5 {[%clk 0:01:05.1]} 30... Rd6 {[%clk
0:00:45.1]} 31. e4 {[%clk 0:01:00.8]} 31... dxe3+ {[%clk 0:00:45]} 32. Rxe3
{[%clk 0:01:00.8]} 32... Kf6 {[%clk 0:00:43.9]} 33. Re6+ {[%clk 0:00:59.9]}
33... Rxe6 {[%clk 0:00:43.6]} 34. dxe6 {[%clk 0:01:00.8]} 34... Kxe6 {[%clk
0:00:44.5]} 35. Ke3 {[%clk 0:01:01]} 35... Ke5 {[%clk 0:00:42.4]} 36. Kd3 {[%clk
0:01:00.1]} 36... Kd5 {[%clk 0:00:42.4]} 37. g4 {[%clk 0:00:51.9]} 37... Ke5
{[%clk 0:00:39.7]} 38. Ke3 {[%clk 0:00:46.4]} 38... a5 {[%clk 0:00:38.4]} 39. a3
{[%clk 0:00:41.5]} 39... Kd5 {[%clk 0:00:35.9]} 40. Kd3 {[%clk 0:00:36.6]} 40...
Ke5 {[%clk 0:00:30.2]} 41. Kc4 {[%clk 0:00:25.6]} 41... Kf4 {[%clk 0:00:26.6]}
42. Kxc5 {[%clk 0:00:26]} 42... Kg3 {[%clk 0:00:27.5]} 43. b4 {[%clk 0:00:26.6]}
43... axb4 {[%clk 0:00:26]} 44. axb4 {[%clk 0:00:27.5]} 44... Kxh3 {[%clk
0:00:26.9]} 45. b5 {[%clk 0:00:28]} 45... Kxg4 {[%clk 0:00:27.8]} 46. b6 {[%clk
0:00:28.6]} 46... h5 {[%clk 0:00:28.7]} 47. b7 {[%clk 0:00:29.2]} 47... h4
{[%clk 0:00:29.6]} 48. b8=Q {[%clk 0:00:29.8]} 48... h3 {[%clk 0:00:30.5]} 49.
Qh2 {[%clk 0:00:29.5]} 1-0

[Event "*** Titled Tuesday Blitz"]
[Site "Chess.com"]
[Date "2020.04.21"]
[Round "7"]
[White "White_Ghost"]
[Black "Dinamo81"]
[Result "0-1"]
[WhiteElo "2438"]
[BlackElo "2621"]
[TimeControl "180+1"]
[EndTime "11:21:54 PDT"]
[Termination "Dinamo81 won on time"]

1. d4 {[%clk 0:03:00.2]} 1... e6 {[%clk 0:02:59.3]} 2. c4 {[%clk 0:03:01.1]}
2... d5 {[%clk 0:02:57.8]} 3. Nf3 {[%clk 0:03:00.6]} 3... a6 {[%clk 0:02:57.7]}
4. g3 {[%clk 0:02:57.9]} 4... dxc4 {[%clk 0:02:49.7]} 5. Bg2 {[%clk 0:02:58.8]}
5... b5 {[%clk 0:02:28]} 6. Ne5 {[%clk 0:02:57.1]} 6... c6 {[%clk 0:02:28.5]} 7.
O-O {[%clk 0:02:47.9]} 7... Bb7 {[%clk 0:02:26.3]} 8. a4 {[%clk 0:02:32.6]} 8...
Nf6 {[%clk 0:02:24.1]} 9. Nc3 {[%clk 0:02:21]} 9... Qc8 {[%clk 0:01:43.4]} 10.
e4 {[%clk 0:01:56.6]} 10... Nbd7 {[%clk 0:01:40.2]} 11. f4 {[%clk 0:01:47.3]}
11... Be7 {[%clk 0:01:37.7]} 12. f5 {[%clk 0:01:37.1]} 12... exf5 {[%clk
0:01:33.3]} 13. Rxf5 {[%clk 0:01:23.7]} 13... O-O {[%clk 0:01:28.8]} 14. Qf3
{[%clk 0:00:59.3]} 14... Nxe5 {[%clk 0:01:23.7]} 15. dxe5 {[%clk 0:00:57.7]}
15... Nd7 {[%clk 0:01:19.3]} 16. Bh3 {[%clk 0:00:54.1]} 16... Qc7 {[%clk
0:01:04.2]} 17. Bf4 {[%clk 0:00:52]} 17... Qb6+ {[%clk 0:00:55.5]} 18. Kh1
{[%clk 0:00:48]} 18... Nc5 {[%clk 0:00:55.5]} 19. a5 {[%clk 0:00:45.7]} 19...
Qd8 {[%clk 0:00:49.1]} 20. Rf1 {[%clk 0:00:16.8]} 20... Bc8 {[%clk 0:00:48.5]}
21. Rh5 {[%clk 0:00:16.3]} 21... Qd3 {[%clk 0:00:43]} 22. Qg2 {[%clk 0:00:11.5]}
22... b4 {[%clk 0:00:31.5]} 23. Rd1 {[%clk 0:00:08.9]} 23... Bxh3 {[%clk
0:00:26.7]} 24. Rxh3 {[%clk 0:00:08]} 24... bxc3 {[%clk 0:00:20.2]} 25. Rxd3
{[%clk 0:00:08.1]} 25... cxd3 {[%clk 0:00:17.1]} 26. bxc3 {[%clk 0:00:08.2]}
26... Rab8 {[%clk 0:00:17.4]} 27. Qd2 {[%clk 0:00:06.5]} 27... Rb1+ {[%clk
0:00:16.3]} 28. Kg2 {[%clk 0:00:06.8]} 28... Rfb8 {[%clk 0:00:15.5]} 29. Qe3
{[%clk 0:00:05]} 29... R8b2+ {[%clk 0:00:14.5]} 30. Kf3 {[%clk 0:00:05.1]} 30...
d2 {[%clk 0:00:14.3]} 31. Rxh7 {[%clk 0:00:01.6]} 31... d1=Q+ {[%clk 0:00:13.8]}
0-1

[Event "*** Titled Tuesday Blitz"]
[Site "Chess.com"]
[Date "2020.04.21"]
[Round "7"]
[White "CroissantNeuf"]
[Black "MilanJeremic"]
[Result "1-0"]
[WhiteElo "2377"]
[BlackElo "2232"]
[TimeControl "180+1"]
[EndTime "11:21:54 PDT"]
[Termination "CroissantNeuf won on time"]

1. Nf3 {[%clk 0:03:00.9]} 1... d5 {[%clk 0:02:59.3]} 2. g3 {[%clk 0:03:00.7]}
2... c6 {[%clk 0:02:59]} 3. Bg2 {[%clk 0:03:01.1]} 3... Bf5 {[%clk 0:02:58.4]}
4. O-O {[%clk 0:02:58.9]} 4... Nf6 {[%clk 0:02:58]} 5. c4 {[%clk 0:02:59.4]}
5... e6 {[%clk 0:02:57.2]} 6. Qb3 {[%clk 0:02:59.9]} 6... Qb6 {[%clk 0:02:56.1]}
7. d3 {[%clk 0:03:00.3]} 7... Nbd7 {[%clk 0:02:54.7]} 8. cxd5 {[%clk 0:02:59.4]}
8... exd5 {[%clk 0:02:51.4]} 9. Qc2 {[%clk 0:02:59.1]} 9... Be7 {[%clk
0:02:47.2]} 10. Nc3 {[%clk 0:02:59.6]} 10... O-O {[%clk 0:02:44.7]} 11. e4
{[%clk 0:03:00.1]} 11... dxe4 {[%clk 0:02:43.1]} 12. dxe4 {[%clk 0:03:01]} 12...
Bg6 {[%clk 0:02:42.6]} 13. Nh4 {[%clk 0:02:58.8]} 13... Rfe8 {[%clk 0:02:31.6]}
14. h3 {[%clk 0:02:57.6]} 14... Nf8 {[%clk 0:02:24.6]} 15. Be3 {[%clk 0:02:52]}
15... Qc7 {[%clk 0:02:19.6]} 16. Rad1 {[%clk 0:02:43.7]} 16... Rad8 {[%clk
0:02:08]} 17. Nxg6 {[%clk 0:02:29.8]} 17... Nxg6 {[%clk 0:02:06]} 18. f4 {[%clk
0:02:26.4]} 18... Rxd1 {[%clk 0:02:02.3]} 19. Rxd1 {[%clk 0:02:24.9]} 19... Rd8
{[%clk 0:02:00.5]} 20. e5 {[%clk 0:02:22.9]} 20... Ne8 {[%clk 0:01:43]} 21. h4
{[%clk 0:01:57.5]} 21... Rxd1+ {[%clk 0:01:38.9]} 22. Qxd1 {[%clk 0:01:55.8]}
22... Bb4 {[%clk 0:01:37.3]} 23. Ne4 {[%clk 0:01:48.2]} 23... Ne7 {[%clk
0:01:36.7]} 24. Qg4 {[%clk 0:01:29.2]} 24... Nd5 {[%clk 0:01:23.6]} 25. Bd4
{[%clk 0:01:20.8]} 25... Qd8 {[%clk 0:01:11]} 26. e6 {[%clk 0:01:04]} 26... f6
{[%clk 0:00:50.8]} 27. Bf2 {[%clk 0:00:37.3]} 27... Be7 {[%clk 0:00:41.3]} 28.
h5 {[%clk 0:00:34.4]} 28... Nd6 {[%clk 0:00:39.7]} 29. h6 {[%clk 0:00:26.9]}
29... g6 {[%clk 0:00:31.6]} 30. Nxd6 {[%clk 0:00:26.7]} 30... Qxd6 {[%clk
0:00:29.1]} 31. f5 {[%clk 0:00:25.2]} 31... g5 {[%clk 0:00:18.8]} 32. Qh5 {[%clk
0:00:25.2]} 32... Bf8 {[%clk 0:00:01.4]} 33. Qf7+ {[%clk 0:00:25.1]} 33... Kh8
{[%clk 0:00:01.1]} 34. Bd4 {[%clk 0:00:20.6]} 1-0

[Event "*** Titled Tuesday Blitz"]
[Site "Chess.com"]
[Date "2020.04.21"]
[Round "7"]
[White "HouseOfDurin"]
[Black "tonyq11"]
[Result "1-0"]
[WhiteElo "2102"]
[BlackElo "2231"]
[TimeControl "180+1"]
[EndTime "11:21:54 PDT"]
[Termination "HouseOfDurin won on time"]

1. d4 {[%clk 0:03:00.9]} 1... d5 {[%clk 0:02:57.6]} 2. Bg5 {[%clk 0:03:00.8]}
2... Nf6 {[%clk 0:02:55.7]} 3. Bxf6 {[%clk 0:03:00.4]} 3... exf6 {[%clk
0:02:55.6]} 4. e3 {[%clk 0:03:00.9]} 4... Bd6 {[%clk 0:02:55.4]} 5. c4 {[%clk
0:03:00.4]} 5... c6 {[%clk 0:02:51.3]} 6. cxd5 {[%clk 0:03:00.2]} 6... cxd5
{[%clk 0:02:51]} 7. Nc3 {[%clk 0:03:00.2]} 7... Be6 {[%clk 0:02:39.6]} 8. g3
{[%clk 0:02:59.6]} 8... O-O {[%clk 0:02:39.3]} 9. Bg2 {[%clk 0:02:59.4]} 9...
Nd7 {[%clk 0:02:37.9]} 10. Nge2 {[%clk 0:02:58.8]} 10... Rc8 {[%clk 0:02:37.2]}
11. O-O {[%clk 0:02:58]} 11... Qb6 {[%clk 0:02:35.9]} 12. Nxd5 {[%clk
0:02:44.6]} 12... Qxb2 {[%clk 0:02:22.4]} 13. Ndf4 {[%clk 0:01:26.8]} 13... Bc4
{[%clk 0:02:16.1]} 14. Rb1 {[%clk 0:01:12.8]} 14... Qxa2 {[%clk 0:02:05.6]} 15.
Bxb7 {[%clk 0:00:50.2]} 15... Bxf4 {[%clk 0:01:37.2]} 16. Nxf4 {[%clk
0:00:49.5]} 16... Rb8 {[%clk 0:01:10.1]} 17. Re1 {[%clk 0:00:46.1]} 17... Rfd8
{[%clk 0:00:49.4]} 18. Ra1 {[%clk 0:00:38.6]} 18... Qb2 {[%clk 0:00:47.5]} 19.
Bf3 {[%clk 0:00:27]} 19... a6 {[%clk 0:00:40.8]} 20. Qc1 {[%clk 0:00:23.9]}
20... Qxc1 {[%clk 0:00:28.6]} 21. Rexc1 {[%clk 0:00:24.8]} 21... Nb6 {[%clk
0:00:26.6]} 22. Be2 {[%clk 0:00:20.1]} 22... Bb5 {[%clk 0:00:20.7]} 23. Rab1
{[%clk 0:00:18.8]} 23... Bxe2 {[%clk 0:00:13.2]} 24. Nxe2 {[%clk 0:00:19.7]}
24... Kf8 {[%clk 0:00:08.5]} 25. Rc6 {[%clk 0:00:15.7]} 25... Nd5 {[%clk
0:00:04.7]} 26. Rxb8 {[%clk 0:00:15.1]} 26... Rxb8 {[%clk 0:00:05.6]} 27. Rxa6
{[%clk 0:00:15.4]} 27... Rb1+ {[%clk 0:00:05.5]} 28. Kg2 {[%clk 0:00:15.4]}
28... g5 {[%clk 0:00:05.1]} 29. Rd6 {[%clk 0:00:09.9]} 29... Rb5 {[%clk
0:00:02.5]} 30. e4 {[%clk 0:00:07.9]} 1-0

[Event "*** Titled Tuesday Blitz"]
[Site "Chess.com"]
[Date "2020.04.21"]
[Round "7"]
[White "RaphaeI"]
[Black "Jospem"]
[Result "1-0"]
[WhiteElo "2672"]
[BlackElo "2821"]
[TimeControl "180+1"]
[EndTime "11:21:55 PDT"]
[Termination "RaphaeI won by resignation"]

1. c4 {[%clk 0:03:00.9]} 1... c5 {[%clk 0:02:59.8]} 2. Nf3 {[%clk 0:03:00.5]}
2... Nc6 {[%clk 0:03:00.2]} 3. Nc3 {[%clk 0:02:59.7]} 3... g6 {[%clk 0:02:58.3]}
4. e3 {[%clk 0:03:00]} 4... Bg7 {[%clk 0:02:53.5]} 5. d4 {[%clk 0:03:00.3]} 5...
d6 {[%clk 0:02:54.4]} 6. Be2 {[%clk 0:02:52]} 6... Nf6 {[%clk 0:02:52.7]} 7. d5
{[%clk 0:02:38.8]} 7... Na5 {[%clk 0:02:51.1]} 8. O-O {[%clk 0:02:35.2]} 8...
O-O {[%clk 0:02:50.6]} 9. Bd2 {[%clk 0:02:33.3]} 9... a6 {[%clk 0:02:49.9]} 10.
a3 {[%clk 0:02:27.8]} 10... b5 {[%clk 0:02:49.6]} 11. cxb5 {[%clk 0:02:26.8]}
11... axb5 {[%clk 0:02:50.5]} 12. Bxb5 {[%clk 0:02:25.1]} 12... Bd7 {[%clk
0:02:46.1]} 13. b4 {[%clk 0:01:59.7]} 13... Nb7 {[%clk 0:00:37.7]} 14. Bc6
{[%clk 0:01:50]} 14... cxb4 {[%clk 0:00:31.9]} 15. axb4 {[%clk 0:01:48]} 15...
Rb8 {[%clk 0:00:31.8]} 16. Nd4 {[%clk 0:01:42.9]} 16... Bc8 {[%clk 0:00:30.3]}
17. Qc2 {[%clk 0:01:22.2]} 17... Nd7 {[%clk 0:00:28]} 18. Nce2 {[%clk
0:01:14.9]} 18... Nb6 {[%clk 0:00:26.7]} 19. Ra7 {[%clk 0:01:09.6]} 19... e5
{[%clk 0:00:26.4]} 20. Nb5 {[%clk 0:01:06.5]} 20... Bg4 {[%clk 0:00:19.8]} 21.
f3 {[%clk 0:01:04.3]} 21... Bc8 {[%clk 0:00:20.3]} 22. e4 {[%clk 0:01:03.7]}
22... f5 {[%clk 0:00:20.5]} 23. Be3 {[%clk 0:01:04.2]} 23... Nd7 {[%clk
0:00:20.7]} 24. Rfa1 {[%clk 0:00:55.8]} 24... fxe4 {[%clk 0:00:20.3]} 25. fxe4
{[%clk 0:00:55.8]} 25... Nf6 {[%clk 0:00:20.9]} 26. h3 {[%clk 0:00:51.2]} 26...
Nh5 {[%clk 0:00:21.1]} 27. Ra8 {[%clk 0:00:51.6]} 27... Rxa8 {[%clk 0:00:19.6]}
28. Rxa8 {[%clk 0:00:52.5]} 28... Qe7 {[%clk 0:00:20.3]} 29. Qd2 {[%clk
0:00:47.1]} 29... Nf6 {[%clk 0:00:17.9]} 30. Nec3 {[%clk 0:00:41.4]} 30... Nh5
{[%clk 0:00:17.8]} 31. Bg5 {[%clk 0:00:40.4]} 31... Qf7 {[%clk 0:00:17.9]} 32.
Ra1 {[%clk 0:00:34.9]} 32... Nf4 {[%clk 0:00:17.5]} 33. Kh2 {[%clk 0:00:27.4]}
33... h6 {[%clk 0:00:16.9]} 34. Bh4 {[%clk 0:00:25.5]} 34... g5 {[%clk
0:00:16.8]} 35. Bg3 {[%clk 0:00:24.8]} 35... h5 {[%clk 0:00:17.4]} 36. Bxb7
{[%clk 0:00:22.8]} 36... h4 {[%clk 0:00:14.8]} 37. Bxf4 {[%clk 0:00:20.4]} 37...
gxf4 {[%clk 0:00:11.5]} 38. Nxd6 {[%clk 0:00:19.5]} 38... f3 {[%clk 0:00:12.4]}
39. Nxf7 {[%clk 0:00:19]} 1-0

[Event "*** Titled Tuesday Blitz"]
[Site "Chess.com"]
[Date "2020.04.21"]
[Round "7"]
[White "arminmusovic"]
[Black "Justinz"]
[Result "1-0"]
[WhiteElo "2490"]
[BlackElo "2302"]
[TimeControl "180+1"]
[EndTime "11:21:55 PDT"]
[Termination "arminmusovic won by resignation"]

1. a3 {[%clk 0:03:00.9]} 1... d5 {[%clk 0:02:58.1]} 2. Nc3 {[%clk 0:03:01.8]}
2... Nf6 {[%clk 0:02:57.5]} 3. d3 {[%clk 0:03:02]} 3... e5 {[%clk 0:02:56.3]} 4.
Bg5 {[%clk 0:03:01.6]} 4... Be7 {[%clk 0:02:55.8]} 5. e4 {[%clk 0:03:01.8]} 5...
dxe4 {[%clk 0:02:54.5]} 6. dxe4 {[%clk 0:03:02.7]} 6... Qxd1+ {[%clk 0:02:51.6]}
7. Rxd1 {[%clk 0:03:03.6]} 7... c6 {[%clk 0:02:51.4]} 8. f4 {[%clk 0:03:01.7]}
8... exf4 {[%clk 0:02:41.4]} 9. Nf3 {[%clk 0:03:00]} 9... h6 {[%clk 0:02:37.2]}
10. Bxf4 {[%clk 0:02:57.6]} 10... Bg4 {[%clk 0:02:25.8]} 11. h3 {[%clk
0:02:50.5]} 11... Bh5 {[%clk 0:02:21.7]} 12. Bc4 {[%clk 0:02:44.6]} 12... Bxf3
{[%clk 0:01:58.6]} 13. gxf3 {[%clk 0:02:43.2]} 13... O-O {[%clk 0:01:58.5]} 14.
Rg1 {[%clk 0:02:38.4]} 14... Kh8 {[%clk 0:01:56]} 15. Bd6 {[%clk 0:02:17.6]}
15... Bxd6 {[%clk 0:01:53.6]} 16. Rxd6 {[%clk 0:02:18.5]} 16... Nbd7 {[%clk
0:01:51.2]} 17. Kf2 {[%clk 0:02:17.4]} 17... Ne5 {[%clk 0:01:50.5]} 18. Be2
{[%clk 0:02:16.8]} 18... Rad8 {[%clk 0:01:47.7]} 19. Rgd1 {[%clk 0:02:15.1]}
19... Rxd6 {[%clk 0:01:45.5]} 20. Rxd6 {[%clk 0:02:16]} 20... Nh5 {[%clk
0:01:44.8]} 21. Ke3 {[%clk 0:02:04.4]} 21... Ng3 {[%clk 0:00:59.9]} 22. f4
{[%clk 0:01:56.6]} 22... Nxe2 {[%clk 0:00:58.8]} 23. Kxe2 {[%clk 0:01:57.5]}
23... Nc4 {[%clk 0:00:58]} 24. Rd7 {[%clk 0:01:56.4]} 24... b6 {[%clk
0:00:56.2]} 25. b3 {[%clk 0:01:50.9]} 25... Nxa3 {[%clk 0:00:53.4]} 26. Rxa7
{[%clk 0:01:26.5]} 26... Nxc2 {[%clk 0:00:52.8]} 27. Kd3 {[%clk 0:01:18.1]}
27... Nb4+ {[%clk 0:00:52.6]} 28. Kc4 {[%clk 0:01:16.3]} 28... c5 {[%clk
0:00:52.7]} 29. Nd5 {[%clk 0:01:14.6]} 29... Nc6 {[%clk 0:00:48.3]} 30. Rc7
{[%clk 0:01:07.3]} 30... Na5+ {[%clk 0:00:47.9]} 31. Kc3 {[%clk 0:01:07.8]}
31... Re8 {[%clk 0:00:46.1]} 32. e5 {[%clk 0:00:59.4]} 32... Kg8 {[%clk
0:00:32.5]} 33. Nxb6 {[%clk 0:00:56.6]} 33... Rb8 {[%clk 0:00:30.9]} 34. Rc8+
{[%clk 0:00:38.4]} 34... Rxc8 {[%clk 0:00:30]} 35. Nxc8 {[%clk 0:00:39.3]} 35...
g5 {[%clk 0:00:26.2]} 36. fxg5 {[%clk 0:00:38.6]} 36... hxg5 {[%clk 0:00:27]}
37. Nd6 {[%clk 0:00:37.4]} 37... Kf8 {[%clk 0:00:25.4]} 38. Ne4 {[%clk
0:00:37.2]} 38... Ke7 {[%clk 0:00:25.4]} 39. Nxc5 {[%clk 0:00:36.5]} 39... f6
{[%clk 0:00:25.2]} 40. exf6+ {[%clk 0:00:36.3]} 40... Kxf6 {[%clk 0:00:25.5]}
41. b4 {[%clk 0:00:37]} 41... Nc6 {[%clk 0:00:25.1]} 42. b5 {[%clk 0:00:37.5]}
42... Nb8 {[%clk 0:00:23.1]} 43. Kd4 {[%clk 0:00:36.9]} 43... Kf5 {[%clk
0:00:23.2]} 44. Kd5 {[%clk 0:00:36.3]} 44... Nd7 {[%clk 0:00:18]} 45. Nxd7
{[%clk 0:00:36.1]} 45... Kf4 {[%clk 0:00:16.4]} 46. Ne5 {[%clk 0:00:36]} 46...
Kg3 {[%clk 0:00:16.2]} 47. b6 {[%clk 0:00:36.3]} 47... Kxh3 {[%clk 0:00:16]} 48.
b7 {[%clk 0:00:36.9]} 1-0